bitfinex/quotes_SOLUSD_20250107
["timestamp","ask_amount","ask_price","bid_price","bid_amount"]
[1736212061336,8.94830735,217.37,217.29,8.94830735]
[1736212061521,8.94830735,217.37,217.3,8.94830735]
[1736212061721,28.94830735,217.39,217.32,8.94830735]
[1736212062548,8.94830735,217.4,217.32,10.49550735]
[1736212063122,8.94830735,217.4,217.33,8.94830735]
[1736212065156,8.94830735,217.39,217.32,10.49550735]
[1736212065755,8.94830735,217.39,217.32,1.5472]
[1736212065958,8.94830735,217.38,217.32,1.5472]
[1736212066755,8.94830735,217.36,217.32,1.5472]
[1736212067760,8.94830735,217.37,217.32,1.5472]
[1736212067931,8.94830735,217.38,217.32,1.5472]
[1736212068270,8.94830735,217.39,217.32,1.5472]
[1736212069135,8.94830735,217.4,217.32,10.49550735]
[1736212069773,8.94830735,217.39,217.32,1.5472]
[1736212073230,8.94830735,217.37,217.32,1.5472]
[1736212075742,8.94830735,217.35,217.32,1.5472]
[1736212076760,8.94830735,217.35,217.27,1.6108]
[1736212077063,8.94830735,217.35,217.27,10.55910735]
[1736212077263,8.94830735,217.33,217.27,10.55910735]
[1736212077633,8.94830735,217.34,217.27,10.55910735]
[1736212077837,8.94830735,217.35,217.27,10.55910735]
[1736212078451,8.94830735,217.34,217.27,10.55910735]
[1736212081770,8.94830735,217.35,217.28,8.94830735]
[1736212085067,8.94830735,217.36,217.28,8.94830735]
[1736212085977,8.94830735,217.35,217.28,8.94830735]
[1736212086360,8.94830735,217.36,217.28,8.94830735]
[1736212086592,8.94830735,217.34,217.27,10.55910735]
[1736212088784,9.52241688,217.36,217.27,10.55910735]
[1736212092285,0.57410953,217.36,217.27,1.6108]
[1736212092585,8.94830735,217.3,217.27,1.6108]
[1736212094687,8.94830735,217.3,217.25,6.5351]
[1736212095191,8.94830735,217.29,217.22,1.5321]
[1736212097075,8.94830735,217.3,217.22,10.48040735]
[1736212097388,0.57410953,217.34,217.23,8.94830735]
[1736212097587,8.94830735,217.31,217.24,8.94830735]
[1736212100662,20.0,217.36,217.25,8.94830735]
[1736212100867,20.0,217.32,217.28,8.94830735]
[1736212101898,0.57410953,217.38,217.29,8.94830735]
[1736212102088,9.52241688,217.38,217.31,8.94830735]
[1736212102688,0.57410953,217.41,217.33,8.94830735]
[1736212102892,8.94830735,217.4,217.33,8.94830735]
[1736212103077,9.52241688,217.39,217.32,8.94830735]
[1736212103283,8.94830735,217.38,217.31,8.94830735]
[1736212103897,8.94830735,217.37,217.3,10.53510735]
[1736212104195,8.94830735,217.35,217.3,1.5868]
[1736212104376,8.94830735,217.36,217.3,1.5868]
[1736212105787,8.94830735,217.37,217.3,10.53510735]
[1736212106181,8.94830735,217.38,217.3,10.53510735]
[1736212107896,8.94830735,217.34,217.3,1.5868]
[1736212108295,8.94830735,217.35,217.3,1.5868]
[1736212108496,0.57410953,217.45,217.34,23.776884]
[1736212108685,14.37462924,217.46,217.4,8.94830735]
[1736212108888,7.18731462,217.43,217.42,8.94830735]
[1736212109404,7.18731462,217.43,217.41,1.6619]
[1736212109984,8.94830735,217.46,217.41,1.6619]
[1736212110504,8.94830735,217.45,217.41,1.6619]
[1736212110708,8.94830735,217.43,217.39,6.6589]
[1736212111313,8.94830735,217.44,217.39,6.6589]
[1736212112405,8.94830735,217.42,217.36,1.6619]
[1736212115720,8.94830735,217.43,217.36,1.6619]
[1736212116710,20.0,217.45,217.36,10.61020735]
[1736212117007,8.94830735,217.44,217.37,8.94830735]
[1736212117607,9.52241688,217.45,217.38,8.94830735]
[1736212117797,8.94830735,217.46,217.38,8.94830735]
[1736212118111,8.94830735,217.46,217.39,8.94830735]
[1736212118313,9.52241688,217.48,217.4,8.94830735]
[1736212120114,9.52241688,217.48,217.22,17.84098892]
[1736212120115,23.776884,217.4,217.25,1.663]
[1736212120415,8.94830735,217.34,217.25,1.663]
[1736212120713,8.94830735,217.34,217.26,8.94830735]
[1736212120903,8.94830735,217.36,217.28,8.94830735]
[1736212121104,0.57410953,217.35,217.28,8.94830735]
[1736212123020,0.57410953,217.35,217.28,13.98000511]
[1736212126698,13.98000511,217.34,217.28,13.98000511]
[1736212126900,0.57410953,217.33,217.28,13.98000511]
[1736212129322,23.776884,217.28,217.22,0.69023657]
[1736212129522,23.776884,217.28,217.1,8.84361671]
[1736212129523,13.98000511,217.24,217.12,13.98000511]
[1736212129825,13.98000511,217.22,217.12,13.98000511]
[1736212130031,0.57410953,217.21,217.14,13.98000511]
[1736212132233,14.55411464,217.22,217.14,13.98000511]
[1736212132824,0.57410953,217.22,217.14,13.98000511]
[1736212133033,20.0,217.23,217.18,13.98000511]
[1736212135206,20.0,217.23,217.11,24.46753427]
[1736212135405,20.0,217.23,217.17,13.98000511]
[1736212135819,33.98000511,217.24,217.17,13.98000511]
[1736212136022,34.55411464,217.24,217.17,13.98000511]
[1736212136340,34.55411464,217.24,217.16,13.98000511]
[1736212137211,13.98000511,217.23,217.16,13.98000511]
[1736212138834,13.98000511,217.23,217.16,13.48000511]
[1736212139011,34.55411464,217.24,217.16,13.48000511]
[1736212139426,20.0,217.22,217.17,13.98000511]
[1736212141035,34.55411464,217.24,217.17,13.98000511]
[1736212141339,34.55411464,217.24,217.16,13.98000511]
[1736212143141,29.5309723,217.24,217.16,8.95686277]
[1736212143343,8.95686277,217.23,217.16,8.95686277]
[1736212144041,29.5309723,217.24,217.16,8.95686277]
[1736212145721,8.95686277,217.23,217.16,8.95686277]
[1736212149328,8.95686277,217.2,217.1,1.6587]
[1736212149529,8.95686277,217.18,217.1,1.6587]
[1736212149733,8.95686277,217.18,217.11,8.95686277]
[1736212150829,8.95686277,217.2,217.13,8.95686277]
[1736212152640,0.57410953,217.19,217.13,8.95686277]
[1736212152841,0.57410953,217.19,217.12,8.95686277]
[1736212153851,8.95686277,217.2,217.12,8.95686277]
[1736212154453,0.57410953,217.19,217.12,8.95686277]
[1736212154818,0.57410953,217.19,217.1,1.6587]
[1736212155222,8.95686277,217.2,217.12,8.95686277]
[1736212156537,0.57410953,217.19,217.12,8.95686277]
[1736212156842,9.5309723,217.19,217.12,8.95686277]
[1736212157050,0.57410953,217.19,217.12,8.95686277]
[1736212157256,9.5309723,217.21,217.14,8.95686277]
[1736212157638,0.57410953,217.21,217.14,8.95686277]
[1736212159636,9.5309723,217.21,217.14,8.95686277]
[1736212160044,0.57410953,217.21,217.14,8.95686277]
[1736212161741,20.0,217.22,217.17,8.95686277]
[1736212162739,0.57410953,217.24,217.18,8.95686277]
[1736212162940,20.0,217.23,217.18,8.95686277]
[1736212163257,14.50325773,217.28,217.2,8.95686277]
[1736212163258,0.57410953,217.27,217.2,8.95686277]
[1736212163560,0.57410953,217.27,217.21,8.95686277]
[1736212163737,20.0,217.26,217.21,8.95686277]
[1736212163937,20.0,217.25,217.21,8.95686277]
[1736212165153,29.5309723,217.27,217.2,8.95686277]
[1736212166664,8.95686277,217.24,217.12,20.0]
[1736212166848,8.95686277,217.22,217.15,8.95686277]
[1736212167455,0.57410953,217.21,217.14,8.95686277]
[1736212169276,20.0,217.23,217.16,8.95686277]
[1736212169443,20.0,217.23,217.19,8.95686277]
[1736212169650,2.1,217.28,217.19,8.95686277]
[1736212169859,20.0,217.24,217.19,8.95686277]
[1736212170040,9.5309723,217.25,217.18,8.95686277]
[1736212171863,9.5309723,217.25,217.17,8.95686277]
[1736212172665,8.95686277,217.24,217.17,8.95686277]
[1736212172852,9.5309723,217.24,217.17,8.95686277]
[1736212176064,9.5309723,217.24,217.1,130.6587]
[1736212176270,9.5309723,217.24,217.15,8.95686277]
[1736212177667,0.57410953,217.24,217.15,8.95686277]
[1736212177870,8.95686277,217.25,217.17,8.95686277]
[1736212178056,20.0,217.22,217.17,8.95686277]
[1736212181952,20.0,217.22,217.15,8.95686277]
[1736212183377,0.57410953,217.24,217.18,8.95686277]
[1736212183566,0.57410953,217.25,217.18,8.95686277]
[1736212183995,20.0,217.24,217.18,8.95686277]
[1736212185884,8.95686277,217.23,217.16,8.95686277]
[1736212187004,28.95686277,217.25,217.16,8.95686277]
[1736212187466,0.57410953,217.24,217.16,8.95686277]
[1736212188281,28.95686277,217.25,217.16,8.95686277]
[1736212189278,0.57410953,217.24,217.16,8.95686277]
[1736212192276,29.5309723,217.25,217.16,8.95686277]
[1736212192957,29.5309723,217.25,217.12,24.46741921]
[1736212192958,29.5309723,217.25,217.18,8.95686277]
[1736212195485,9.5309723,217.25,217.18,8.95686277]
[1736212197181,29.5309723,217.25,217.16,8.95686277]
[1736212199390,29.5309723,217.25,217.12,24.46741921]
[1736212199577,29.5309723,217.25,217.16,8.95686277]
[1736212200673,8.95686277,217.23,217.12,23.776884]
[1736212200875,8.95686277,217.21,217.12,8.95686277]
[1736212201478,8.95686277,217.21,217.14,8.95686277]
[1736212202288,0.57410953,217.2,217.14,8.95686277]
[1736212202495,0.57410953,217.2,217.11,23.776884]
[1736212202795,0.57410953,217.2,217.13,8.95686277]
[1736212206296,8.95686277,217.19,217.1,1.6587]
[1736212206464,0.57410953,217.18,217.1,1.6587]
[1736212206666,9.5309723,217.18,217.11,8.95686277]
[1736212207488,9.5309723,217.18,217.05,1.5105]
[1736212207489,8.95686277,217.16,217.05,1.5105]
[1736212207700,9.5309723,217.15,217.07,8.95686277]
[1736212210078,9.5309723,217.15,217.08,8.95686277]
[1736212210991,20.0,217.14,217.09,8.95686277]
[1736212211296,20.0,217.14,217.1,8.95686277]
[1736212211697,2.06,217.2,217.12,8.95686277]
[1736212211882,9.5309723,217.19,217.12,8.95686277]
[1736212212192,0.57410953,217.19,217.12,8.95686277]
[1736212212372,9.5309723,217.19,217.12,8.95686277]
[1736212213474,28.95686277,217.18,217.1,8.95686277]
[1736212213674,0.57410953,217.17,217.1,8.95686277]
[1736212214197,0.57410953,217.17,217.11,8.95686277]
[1736212214405,29.5309723,217.18,217.11,8.95686277]
[1736212216720,9.5309723,217.18,217.11,8.95686277]
[1736212216880,20.0,217.18,217.13,8.95686277]
[1736212217215,0.57410953,217.2,217.15,8.95686277]
[1736212217379,0.57410953,217.21,217.15,8.95686277]
[1736212217580,20.0,217.22,217.17,8.95686277]
[1736212217776,20.0,217.22,217.18,8.95686277]
[1736212218020,20.0,217.22,217.17,8.95686277]
[1736212218189,20.0,217.23,217.16,8.95686277]
[1736212218394,20.57410953,217.23,217.16,8.95686277]
[1736212218909,9.5309723,217.23,217.16,8.95686277]
[1736212221417,9.5309723,217.24,217.16,8.95686277]
[1736212222019,8.95686277,217.25,217.18,8.95686277]
[1736212222383,8.95686277,217.25,217.2,8.95686277]
[1736212222384,20.0,217.25,217.2,8.95686277]
[1736212223309,9.5309723,217.27,217.2,8.95686277]
[1736212224782,20.0,217.28,217.22,8.95686277]
[1736212224983,0.57410953,217.31,217.24,8.95686277]
[1736212225388,9.5309723,217.31,217.24,8.95686277]
[1736212226101,8.95686277,217.3,217.23,8.95686277]
[1736212226399,9.5309723,217.3,217.23,8.95686277]
[1736212226600,9.5309723,217.3,217.22,8.95686277]
[1736212227003,8.95686277,217.29,217.22,8.95686277]
[1736212228213,8.95686277,217.27,217.19,23.776884]
[1736212228511,8.95686277,217.27,217.2,8.95686277]
[1736212229613,8.95686277,217.28,217.21,8.95686277]
[1736212230308,8.95686277,217.29,217.22,8.95686277]
[1736212230496,20.0,217.3,217.22,8.95686277]
[1736212230691,8.95686277,217.29,217.22,8.95686277]
[1736212232121,20.0,217.3,217.22,8.95686277]
[1736212232317,8.95686277,217.29,217.22,8.95686277]
[1736212235218,28.95686277,217.3,217.23,8.95686277]
[1736212235439,8.95686277,217.3,217.24,8.95686277]
[1736212236319,0.57410953,217.33,217.26,8.95686277]
[1736212236511,8.95686277,217.32,217.26,8.95686277]
[1736212237505,8.95686277,217.32,217.25,8.95686277]
[1736212239332,8.95686277,217.31,217.25,8.95686277]
[1736212239857,8.95686277,217.3,217.23,8.95686277]
[1736212242841,20.57410953,217.33,217.23,8.95686277]
[1736212243137,8.95686277,217.3,217.23,8.95686277]
[1736212243549,8.95686277,217.3,217.21,23.776884]
[1736212243746,8.95686277,217.26,217.19,129.0]
[1736212245133,8.95686277,217.25,217.19,23.776884]
[1736212247129,8.95686277,217.24,217.18,1.6408]
[1736212247334,8.95686277,217.24,217.17,8.95686277]
[1736212247529,8.95686277,217.23,217.16,32.73374677]
[1736212247849,8.95686277,217.22,217.16,23.776884]
[1736212250447,8.95686277,217.22,217.16,32.73374677]
[1736212250836,8.95686277,217.23,217.16,32.73374677]
[1736212251044,8.9014382,217.23,217.16,32.73374677]
[1736212251654,8.95686277,217.21,217.13,132.6492]
[1736212251836,8.95686277,217.21,217.14,8.95686277]
[1736212252155,8.95686277,217.2,217.14,23.776884]
[1736212252927,8.95686277,217.2,217.13,8.95686277]
[1736212253148,8.95686277,217.18,217.11,8.95686277]
[1736212253532,8.95686277,217.19,217.12,8.95686277]
[1736212259461,8.95686277,217.17,217.1,8.95686277]
[1736212260861,8.95686277,217.18,217.11,8.95686277]
[1736212263958,8.95686277,217.18,217.08,1.5806]
[1736212263959,8.95686277,217.16,217.04,2.02]
[1736212264134,8.95686277,217.17,217.1,8.95686277]
[1736212266257,2.17180953,217.19,217.1,8.95686277]
[1736212266454,0.57410953,217.21,217.15,8.95686277]
[1736212266655,20.0,217.19,217.14,8.95686277]
[1736212266956,9.5309723,217.18,217.11,8.95686277]
[1736212267161,20.0,217.19,217.12,8.95686277]
[1736212267344,8.95686277,217.18,217.11,8.95686277]
[1736212270174,20.57410953,217.19,217.13,8.95686277]
[1736212271155,20.0,217.19,217.13,8.95686277]
[1736212272274,20.0,217.19,217.12,8.95686277]
[1736212275067,20.0,217.19,217.13,8.95686277]
[1736212277466,20.0,217.19,217.12,8.95686277]
[1736212277665,28.95686277,217.19,217.09,23.776884]
[1736212277866,28.95686277,217.19,217.12,23.776884]
[1736212278165,20.0,217.19,217.12,32.73374677]
[1736212278363,20.0,217.19,217.09,23.776884]
[1736212278364,8.95686277,217.18,217.09,23.776884]
[1736212278552,8.95686277,217.18,217.12,23.776884]
[1736212279274,8.95686277,217.18,217.09,23.776884]
[1736212279477,8.95686277,217.17,217.1,8.95686277]
[1736212279972,8.95686277,217.17,217.09,23.776884]
[1736212280271,8.95686277,217.17,217.09,32.73374677]
[1736212280451,8.95686277,217.17,217.09,23.776884]
[1736212280772,8.95686277,217.17,217.11,23.776884]
[1736212280966,0.57410953,217.18,217.11,23.776884]
[1736212280967,9.5309723,217.18,217.11,23.776884]
[1736212281468,29.5309723,217.19,217.12,8.95686277]
[1736212282849,20.0,217.19,217.12,8.95686277]
[1736212283050,20.0,217.19,217.13,8.95686277]
[1736212283973,1.6024,217.24,217.17,8.95686277]
[1736212284177,10.55926277,217.24,217.17,8.95686277]
[1736212284371,0.57410953,217.23,217.16,8.95686277]
[1736212284586,10.55926277,217.24,217.16,8.95686277]
[1736212284771,8.95686277,217.23,217.16,8.95686277]
[1736212284972,28.95686277,217.23,217.16,8.95686277]
[1736212285462,29.5309723,217.23,217.16,8.95686277]
[1736212285663,29.5309723,217.23,217.15,8.95686277]
[1736212286067,20.0,217.23,217.17,8.95686277]
[1736212286664,28.95686277,217.23,217.16,8.95686277]
[1736212287053,8.95686277,217.22,217.15,8.95686277]
[1736212287659,20.57410953,217.23,217.16,8.95686277]
[1736212287863,29.5309723,217.23,217.16,8.95686277]
[1736212290267,29.5309723,217.23,217.15,8.95686277]
[1736212291269,9.5309723,217.23,217.15,8.95686277]
[1736212291475,8.95686277,217.22,217.15,8.95686277]
[1736212293902,9.5309723,217.21,217.14,8.95686277]
[1736212294074,9.5309723,217.21,217.12,23.776884]
[1736212294075,8.95686277,217.2,217.13,8.95686277]
[1736212294561,20.0,217.23,217.09,1.629]
[1736212294562,8.95686277,217.17,217.09,1.629]
[1736212294765,8.95686277,217.16,217.09,1.629]
[1736212295187,8.95686277,217.16,217.1,23.776884]
[1736212295685,8.95686277,217.17,217.1,32.73374677]
[1736212295881,8.95686277,217.18,217.1,32.73374677]
[1736212296790,8.95686277,217.18,217.11,8.95686277]
[1736212298102,0.57410953,217.22,217.13,8.95686277]
[1736212298402,8.95686277,217.22,217.15,8.95686277]
[1736212298705,0.57410953,217.23,217.1,0.6907228]
[1736212298706,9.5309723,217.23,217.16,8.95686277]
[1736212298867,1.6024,217.24,217.16,8.95686277]
[1736212299065,10.55926277,217.24,217.16,8.95686277]
[1736212301185,0.57410953,217.27,217.18,8.95686277]
[1736212301382,8.95686277,217.26,217.19,8.95686277]
[1736212303008,8.95686277,217.27,217.2,8.95686277]
[1736212303204,6.1624,217.28,217.21,8.95686277]
[1736212303205,8.95686277,217.28,217.21,8.95686277]
[1736212303501,8.95686277,217.27,217.2,8.95686277]
[1736212304789,8.95686277,217.26,217.19,8.95686277]
[1736212309607,9.5309723,217.25,217.18,8.95686277]
[1736212310508,8.95686277,217.25,217.17,32.73374677]
[1736212310698,8.95686277,217.25,217.18,23.776884]
[1736212311416,20.0,217.28,217.17,32.73374677]
[1736212311711,8.95686277,217.25,217.18,8.95686277]
[1736212314928,9.5309723,217.27,217.19,8.95686277]
[1736212315115,0.57410953,217.27,217.21,8.95686277]
[1736212315316,29.5309723,217.28,217.2,8.95686277]
[1736212317140,8.95686277,217.27,217.19,8.95686277]
[1736212321822,8.95686277,217.27,217.2,8.95686277]
[1736212323431,8.95686277,217.27,217.17,23.776884]
[1736212323609,8.95686277,217.26,217.17,23.776884]
[1736212323808,8.95686277,217.26,217.19,8.95686277]
[1736212327712,2.14400953,217.3,217.2,23.776884]
[1736212327913,8.95686277,217.29,217.21,8.95686277]
[1736212328529,8.95686277,217.29,217.18,23.776884]
[1736212328714,8.95686277,217.29,217.21,8.95686277]
[1736212329337,9.5309723,217.29,217.21,8.95686277]
[1736212329710,8.95686277,217.29,217.21,8.95686277]
[1736212331711,1.5699,217.3,217.21,8.95686277]
[1736212331946,9.5309723,217.29,217.21,8.95686277]
[1736212332236,8.95686277,217.29,217.21,8.95686277]
[1736212333548,8.95686277,217.28,217.2,8.95686277]
[1736212337444,8.95686277,217.27,217.2,8.95686277]
[1736212337630,8.95686277,217.26,217.18,25.796884]
[1736212338031,8.95686277,217.26,217.19,8.95686277]
[1736212338546,8.95686277,217.26,217.18,25.796884]
[1736212339019,8.95686277,217.26,217.19,23.776884]
[1736212340019,8.95686277,217.26,217.19,8.95686277]
[1736212340939,8.95686277,217.28,217.2,8.95686277]
[1736212341145,28.95686277,217.29,217.21,8.95686277]
[1736212341749,20.0,217.29,217.22,8.95686277]
[1736212342050,28.95686277,217.29,217.22,8.95686277]
[1736212343130,1.5699,217.3,217.23,8.95686277]
[1736212345052,10.52676277,217.3,217.23,8.95686277]
[1736212345421,8.95686277,217.29,217.23,23.776884]
[1736212346443,8.95686277,217.29,217.22,23.776884]
[1736212347036,8.95686277,217.29,217.21,8.95686277]
[1736212350462,0.57410953,217.28,217.19,8.95686277]
[1736212350624,8.95686277,217.27,217.19,8.95686277]
[1736212351425,9.5309723,217.27,217.19,8.95686277]
[1736212355153,8.95686277,217.26,217.19,8.95686277]
[1736212355356,9.5309723,217.26,217.19,8.95686277]
[1736212356847,9.5309723,217.26,217.18,8.95686277]
[1736212358164,9.5309723,217.26,217.19,8.95686277]
[1736212359051,0.57410953,217.26,217.2,8.95686277]
[1736212361143,6.78650953,217.27,217.2,8.95686277]
[1736212361468,6.78650953,217.27,217.21,8.95686277]
[1736212364139,6.78650953,217.27,217.2,8.95686277]
[1736212365264,6.78650953,217.27,217.21,8.95686277]
[1736212366166,6.78650953,217.27,217.2,8.95686277]
[1736212366350,15.7433723,217.27,217.2,8.95686277]
[1736212367062,15.7433723,217.27,217.16,23.776884]
[1736212367269,15.7433723,217.27,217.2,8.95686277]
[1736212367948,6.78650953,217.27,217.2,8.95686277]
[1736212368961,6.78650953,217.27,217.21,8.95686277]
[1736212375887,6.78650953,217.27,217.19,8.95686277]
[1736212376188,8.95686277,217.26,217.19,8.95686277]
[1736212376348,0.57410953,217.25,217.19,8.95686277]
[1736212377276,0.57410953,217.25,217.13,2.02]
[1736212377460,0.57410953,217.25,217.17,8.95686277]
[1736212377864,8.95686277,217.24,217.17,8.95686277]
[1736212378067,0.57410953,217.23,217.17,8.95686277]
[1736212378266,8.95686277,217.24,217.17,8.95686277]
[1736212378480,0.57410953,217.23,217.17,8.95686277]
[1736212378877,8.95686277,217.24,217.17,8.95686277]
[1736212380888,0.57410953,217.23,217.17,8.95686277]
[1736212381188,0.51870282,217.23,217.17,8.95686277]
[1736212382077,20.46329611,217.24,217.18,8.95686277]
[1736212384088,29.42015888,217.24,217.17,8.95686277]
[1736212387797,20.46329611,217.24,217.19,8.95686277]
[1736212388957,40.92815888,217.24,217.13,2.02]
[1736212389157,40.92815888,217.24,217.17,8.95686277]
[1736212391786,20.46329611,217.24,217.14,23.776884]
[1736212391965,20.46329611,217.24,217.19,8.95686277]
[1736212393058,20.46329611,217.24,217.2,8.95686277]
[1736212393990,20.0,217.24,217.21,8.95686277]
[1736212394486,2.03319611,217.3,217.23,8.95686277]
[1736212394783,2.03319611,217.3,217.24,8.95686277]
[1736212395161,2.03319611,217.3,217.14,188.60433508]
[1736212395362,10.99005888,217.3,217.24,8.95686277]
[1736212396986,10.99005888,217.3,217.23,8.95686277]
[1736212400703,2.03319611,217.3,217.24,8.95686277]
[1736212400869,20.0,217.29,217.26,8.95686277]
[1736212401981,20.0,217.3,217.26,8.95686277]
[1736212402795,20.0,217.29,217.25,8.95686277]
[1736212404283,28.95686277,217.31,217.24,8.95686277]
[1736212404481,29.42015888,217.31,217.24,8.95686277]
[1736212407587,8.95686277,217.3,217.23,8.95686277]
[1736212409698,8.95686277,217.27,217.2,10.97686277]
[1736212410879,8.95686277,217.27,217.2,8.95686277]
[1736212411703,8.95686277,217.26,217.19,8.95686277]
[1736212412880,8.95686277,217.28,217.21,8.95686277]
[1736212413508,8.95686277,217.27,217.2,8.95686277]
[1736212415006,8.95686277,217.28,217.21,8.95686277]
[1736212415983,8.95686277,217.29,217.22,8.95686277]
[1736212417424,0.46329611,217.28,217.22,8.95686277]
[1736212418103,8.95686277,217.29,217.22,8.95686277]
[1736212418492,0.46329611,217.3,217.24,8.95686277]
[1736212418679,20.0,217.28,217.24,8.95686277]
[1736212418884,20.0,217.28,217.25,8.95686277]
[1736212419094,0.46329611,217.34,217.25,8.95686277]
[1736212419415,20.0,217.32,217.25,8.95686277]
[1736212419614,28.95686277,217.32,217.25,8.95686277]
[1736212420210,8.95686277,217.31,217.25,8.95686277]
[1736212420392,8.95686277,217.31,217.24,8.95686277]
[1736212422810,20.46329611,217.32,217.24,8.95686277]
[1736212423016,29.42015888,217.32,217.25,8.95686277]
[1736212423790,20.0,217.32,217.26,8.95686277]
[1736212423994,20.0,217.32,217.27,8.95686277]
[1736212425821,20.0,217.32,217.26,8.95686277]
[1736212426718,28.95686277,217.32,217.25,8.95686277]
[1736212427028,8.95686277,217.31,217.24,8.95686277]
[1736212427803,8.95686277,217.29,217.22,8.95686277]
[1736212430725,8.95686277,217.28,217.22,23.776884]
[1736212431339,8.95686277,217.27,217.18,131.02]
[1736212431630,8.95686277,217.27,217.2,8.95686277]
[1736212431830,8.95686277,217.27,217.19,32.73374677]
[1736212433928,8.95686277,217.27,217.2,8.95686277]
[1736212436231,8.95686277,217.27,217.19,32.73374677]
[1736212438435,8.95686277,217.28,217.2,8.95686277]
[1736212438813,8.95686277,217.29,217.21,8.95686277]
[1736212440239,8.95686277,217.31,217.23,8.95686277]
[1736212440446,8.95686277,217.31,217.24,8.95686277]
[1736212442017,8.95686277,217.3,217.23,8.95686277]
[1736212445843,8.95686277,217.31,217.23,8.95686277]
[1736212446939,8.95686277,217.31,217.24,8.95686277]
[1736212447241,31.5038,217.32,217.24,8.95686277]
[1736212447448,31.5038,217.32,217.25,8.95686277]
[1736212447449,40.46066277,217.32,217.25,8.95686277]
[1736212448361,20.0,217.32,217.25,8.95686277]
[1736212448520,28.95686277,217.32,217.25,8.95686277]
[1736212451322,28.95686277,217.32,217.25,23.776884]
[1736212451747,8.95686277,217.31,217.25,23.776884]
[1736212451960,8.95686277,217.32,217.25,8.95686277]
[1736212452259,20.0,217.33,217.26,8.95686277]
[1736212452449,28.95686277,217.33,217.26,8.95686277]
[1736212452651,8.95686277,217.32,217.25,8.95686277]
[1736212452857,28.95686277,217.33,217.26,8.95686277]
[1736212454528,28.95686277,217.33,217.25,8.95686277]
[1736212454724,8.95686277,217.32,217.25,8.95686277]
[1736212456758,8.95686277,217.31,217.25,8.95686277]
[1736212458241,8.95686277,217.31,217.25,23.776884]
[1736212460261,20.0,217.33,217.25,8.95686277]
[1736212460442,8.95686277,217.32,217.25,8.95686277]
[1736212471489,8.95686277,217.29,217.23,2.02]
[1736212471668,8.95686277,217.28,217.23,2.02]
[1736212471860,8.95686277,217.29,217.24,23.776884]
[1736212473902,8.95686277,217.29,217.23,25.796884]
[1736212474084,8.95686277,217.29,217.24,23.776884]
[1736212474404,8.95686277,217.29,217.23,23.776884]
[1736212478212,8.95686277,217.29,217.22,8.95686277]
[1736212478213,8.95686277,217.28,217.18,129.69031967]
[1736212478383,8.95686277,217.26,217.19,2.02]
[1736212478584,8.95686277,217.26,217.2,23.776884]
[1736212478888,8.95686277,217.25,217.18,10.97686277]
[1736212479073,8.95686277,217.23,217.17,1.5722]
[1736212479279,8.95686277,217.23,217.16,8.95686277]
[1736212479589,8.95686277,217.24,217.17,23.776884]
[1736212479793,8.95686277,217.24,217.16,8.95686277]
[1736212479990,8.95686277,217.24,217.17,8.95686277]
[1736212481405,8.95686277,217.25,217.19,23.776884]
[1736212482109,8.95686277,217.26,217.19,32.73374677]
[1736212488608,13.59889611,217.28,217.21,8.95686277]
[1736212488609,13.1356,217.28,217.21,8.95686277]
[1736212488810,8.95686277,217.27,217.21,8.95686277]
[1736212491626,11.5059,217.28,217.21,8.95686277]
[1736212491800,20.46276277,217.28,217.21,8.95686277]
[1736212492001,40.46276277,217.28,217.21,8.95686277]
[1736212492826,8.95686277,217.27,217.21,8.95686277]
[1736212493011,8.95686277,217.27,217.21,23.776884]
[1736212494134,8.95686277,217.27,217.18,2.02]
[1736212494135,8.95686277,217.25,217.18,2.02]
[1736212494306,8.95686277,217.25,217.18,10.97686277]
[1736212495125,8.95686277,217.25,217.19,23.776884]
[1736212495430,8.95686277,217.24,217.19,23.776884]
[1736212495826,8.95686277,217.24,217.18,23.776884]
[1736212496623,8.95686277,217.25,217.18,23.776884]
[1736212497008,0.46329611,217.27,217.17,10.97686277]
[1736212497009,8.95686277,217.24,217.17,2.02]
[1736212497323,8.95686277,217.24,217.17,10.97686277]
[1736212498328,9.42015888,217.25,217.17,10.97686277]
[1736212499639,9.42015888,217.25,217.14,23.776884]
[1736212499844,9.42015888,217.25,217.17,8.95686277]
[1736212500923,8.95686277,217.24,217.17,8.95686277]
[1736212502532,8.95686277,217.25,217.18,8.95686277]
[1736212502719,11.5069,217.26,217.19,8.95686277]
[1736212502720,20.46376277,217.26,217.19,8.95686277]
[1736212503044,0.46329611,217.25,217.19,8.95686277]
[1736212503544,0.46329611,217.25,217.16,23.776884]
[1736212503745,0.46329611,217.25,217.19,8.95686277]
[1736212504243,8.95686277,217.26,217.19,8.95686277]
[1736212504427,9.42015888,217.27,217.2,23.776884]
[1736212504632,20.46329611,217.28,217.21,8.95686277]